fUST/lending_fUST_20260109
["ID","MTS","AMOUNT","RATE_DAILY","PERIOD"]
[401137370,1767964232027,-500.0,0.00013273,2]
[401137372,1767964232037,-217.83062021,0.00013273,2]
[401137374,1767964232046,-608.0,0.00013273,2]
[401137376,1767964232056,-1000.0,0.00013699,2]
[401137378,1767964232065,-500.0,0.00013699,2]
[401137380,1767964232074,-500.0,0.00013699,2]
[401137382,1767964232084,-500.0,0.00013699,2]
[401137383,1767964232093,-435.87748746,0.000138,2]
[401137384,1767964232103,-1000.0,0.00013821,2]
[401137385,1767964232111,-300.0,0.00014246,2]
[401137386,1767964232120,-1000.0,0.00014247,2]
[401137387,1767964232130,-1000.0,0.00014247,2]
[401137389,1767964232145,-1000.0,0.00014247,2]
[401137391,1767964232154,-1000.0,0.00014368,2]
[401137392,1767964232163,-300.0,0.00014428,2]
[401137393,1767964232172,-300.0,0.00014428,2]
[401137394,1767964232181,-300.0,0.00014428,2]
[401137395,1767964232190,-300.0,0.00014428,2]
[401137396,1767964232199,-300.0,0.00014428,2]
[401137397,1767964232208,-300.0,0.00014428,2]
[401137398,1767964232217,-300.0,0.00014428,2]
[401137399,1767964232227,-300.0,0.00014428,2]
[401137400,1767964232236,-300.0,0.00014428,2]
[401137401,1767964232245,-300.0,0.00014428,2]
[401137402,1767964232254,-300.0,0.00014428,2]
[401137403,1767964232263,-300.0,0.00014428,2]
[401137404,1767964232272,-300.0,0.00014428,2]
[401137405,1767964232281,-300.0,0.00014428,2]
[401137406,1767964232290,-300.0,0.00014428,2]
[401137407,1767964232299,-600.0,0.00014428,2]
[401137408,1767964232308,-500.0,0.000145,2]
[401137409,1767964232317,-1500.0,0.00014795,2]
[401137410,1767964232326,-1255.89895502,0.00014795,2]
[401137411,1767964232337,-244.10104498,0.00014795,2]
[401137412,1767964232346,-56.12895502,0.00014795,2]
[401137569,1767964244400,-1443.87104498,0.00014795,2]
[401137570,1767964244410,-151.37877248,0.000149,2]
[401137572,1767964244419,-151.37877248,0.000149,2]
[401137573,1767964244428,-151.37877248,0.000149,2]
[401137574,1767964244437,-785.01003758,0.00015005,2]
[401137582,1767964246007,-1264.84544642,0.00015005,2]
[401137583,1767964246016,-205.7074,0.00015068,2]
[401137584,1767964246026,-257.04013185,0.00015273,2]
[401137585,1767964246036,-2000.0,0.00015342,2]
[401137586,1767964246046,-500.0,0.00015342,2]
[401137587,1767964246056,-2000.0,0.00015342,2]
[401137588,1767964246065,-500.0,0.000155,2]
[401137589,1767964246075,-420.0,0.00015603,2]
[401137590,1767964246084,-151.0,0.000158,2]
[401137591,1767964246096,-720.0,0.00015871,2]
[401137592,1767964246105,-2500.0,0.0001589,2]
[401137593,1767964246118,-2500.0,0.0001589,2]
[401137594,1767964246127,-201.765,0.00016076,2]
[401137595,1767964246137,-200.331,0.00016076,2]
[401137596,1767964246147,-221.518,0.00016076,2]
[401137597,1767964246157,-232.291,0.00016076,2]
[401137598,1767964246166,-243.257,0.00016076,2]
[401137599,1767964246176,-250.0,0.00016076,2]
[401137600,1767964246186,-261.15,0.00016076,2]
[401137601,1767964246195,-267.363,0.00016076,2]
[401137602,1767964246204,-1366.0,0.00016076,2]
[401137603,1767964246214,-2146.0,0.00016076,2]
[401137604,1767964246223,-628.0,0.00016076,2]
[401137605,1767964246233,-714.0,0.00016076,2]
[401137606,1767964246242,-417.0,0.00016076,2]
[401137607,1767964246253,-196.35,0.00016076,2]
[401137608,1767964246263,-417.0,0.00016076,2]
[401137609,1767964246272,-1000.0,0.000161,2]
[401137610,1767964246282,-151.0,0.000163,2]
[401137611,1767964246292,-31.95347494,0.00016339,2]
[401137634,1767965025965,200.0,0.00028875,120]
[401137635,1767965027556,200.0,0.00028875,120]
[401137636,1767965033360,201.35915184,0.00028875,120]
[401137659,1767965432271,-500.0,0.00013273,2]
[401137660,1767965432282,-221.09976191,0.00013273,2]
[401137661,1767965432292,-608.0,0.00013273,2]
[401137663,1767965432305,-219.95023809,0.00013699,2]
[401137711,1767965438408,-280.04976191,0.00013699,2]
[401137712,1767965438419,-500.0,0.00013699,2]
[401137713,1767965438430,-500.0,0.00013699,2]
[401137714,1767965438442,-453.67195624,0.00013821,2]
[401137716,1767965438455,-546.32804376,0.00013821,2]
[401137718,1767965438470,-200.0,0.00013946,2]
[401137720,1767965438482,-200.0,0.00013946,2]
[401137721,1767965438493,-200.0,0.00013946,2]
[401137722,1767965438504,-300.0,0.00013946,2]
[401137723,1767965438515,-14423.10647086,0.00013947,2]
[401137729,1767965440483,-3317.582788,0.00013947,2]
[401138135,1767965445208,-3938.42946131,0.00013947,2]
[401138210,1767965445881,-300.0,0.00013947,2]
[401138212,1767965445893,-6516.99428067,0.00013947,2]
[401138442,1767965686547,155.0,5e-05,2]
[401138446,1767966003444,-300.0,0.00010958,2]
[401138447,1767966003467,-227.70489055,0.00010959,2]
[401138448,1767966003488,-1500.0,0.00010959,2]
[401138449,1767966003510,-1500.0,0.00010959,2]
[401138450,1767966003530,-1500.0,0.00010959,2]
[401138451,1767966003551,-1500.0,0.00010959,2]
[401138452,1767966003572,-1500.0,0.00010959,2]
[401138453,1767966003594,-1500.0,0.00010959,2]
[401138454,1767966003617,-472.29510945,0.00010959,2]
[401138455,1767966006249,-1605.73816155,0.00010959,2]
[401138456,1767966006274,-300.0,0.00011177,2]
[401138457,1767966006302,-300.0,0.00011177,2]
[401138458,1767966006338,-300.0,0.00011177,2]
[401138459,1767966006365,-300.0,0.00011177,2]
[401138460,1767966006389,-300.0,0.00011177,2]
[401138461,1767966006412,-300.0,0.00011177,2]
[401138462,1767966006435,-300.0,0.00011177,2]
[401138463,1767966006457,-300.0,0.00011177,2]
[401138464,1767966006480,-300.0,0.00011177,2]
[401138465,1767966006502,-300.0,0.00011177,2]
[401138466,1767966006524,-300.0,0.00011177,2]
[401138467,1767966006547,-300.0,0.00011177,2]
[401138468,1767966006570,-300.0,0.00011177,2]
[401138469,1767966006595,-300.0,0.00011177,2]
[401138470,1767966006618,-300.0,0.00011177,2]
[401138471,1767966006640,-600.0,0.00011177,2]
[401138472,1767966006856,574.0,0.00010959,2]
[401138473,1767966021456,-420.0,0.00012042,2]
[401138474,1767966032873,-268.69177085,0.00012959,2]
[401138475,1767966092387,222.0,0.00030137,120]
[401138524,1767966638593,-300.0,0.00013272,2]
[401138525,1767966638608,-222.73561889,0.00013272,2]
[401138526,1767966638618,-500.0,0.00013273,2]
[401138527,1767966638627,-500.0,0.00013273,2]
[401138528,1767966638636,-333.2661373,0.00013273,2]
[401138529,1767966638646,-500.0,0.00013273,2]
[401138530,1767966638655,-500.0,0.00013273,2]
[401138531,1767966638664,-365.99256781,0.00013273,2]
[401138532,1767966638675,-500.0,0.00013273,2]
[401138533,1767966638685,-500.0,0.00013273,2]
[401138534,1767966638696,-500.0,0.00013273,2]
[401138535,1767966638705,-500.0,0.00013273,2]
[401138536,1767966638715,-500.0,0.00013273,2]
[401138537,1767966638724,-2560.29818,0.00013595,2]
[401138538,1767966638734,-500.0,0.00013672,2]
[401138539,1767966638743,-191.0273,0.00013699,2]
[401138540,1767966638752,-500.0,0.00013699,2]
[401138541,1767966638762,-559.10175057,0.00013699,2]
[401138542,1767966638771,-500.0,0.00013699,2]
[401138543,1767966638780,-500.0,0.00013699,2]
[401138544,1767966638790,-500.0,0.00013699,2]
[401138545,1767966638800,-500.0,0.00013699,2]
[401138546,1767966638809,-500.0,0.00013699,2]
[401138547,1767966638819,-500.0,0.00013699,2]
[401138548,1767966638828,-500.0,0.00013699,2]
[401138549,1767966638838,-500.0,0.00013699,2]
[401138550,1767966638848,-500.0,0.00013699,2]
[401138551,1767966638857,-500.0,0.00013699,2]
[401138552,1767966638866,-500.0,0.00013699,2]
[401138553,1767966638876,-500.0,0.00013699,2]
[401138554,1767966638885,-500.0,0.00013699,2]
[401138555,1767966638895,-500.0,0.00013699,2]
[401138556,1767966638905,-638.41119879,0.00013699,2]
[401138557,1767966638914,-509.9151804,0.00013699,2]
[401138558,1767966638923,-500.0,0.00013699,2]
[401138559,1767966638932,-503.75899236,0.00013699,2]
[401138560,1767966638942,-500.0,0.00013699,2]
[401138561,1767966638952,-505.42705469,0.00013699,2]
[401138562,1767966638962,-500.0,0.00013699,2]
[401138563,1767966638971,-500.0,0.00013699,2]
[401138564,1767966638981,-500.0,0.00013699,2]
[401138565,1767966638990,-500.0,0.00013699,2]
[401138566,1767966638999,-500.0,0.00013809,2]
[401138567,1767966639009,-1000.0,0.00013821,2]
[401138568,1767966639018,-1000.0,0.00013821,2]
[401138569,1767966639194,-500.0,0.00013821,2]
[401138570,1767966639203,-1000.0,0.00013821,2]
[401138571,1767966639214,-1000.0,0.00013821,2]
[401138572,1767966639223,-1000.0,0.00013821,2]
[401138573,1767966639235,-1000.0,0.00013821,2]
[401138574,1767966639245,-1000.0,0.00013821,2]
[401138575,1767966639255,-1000.0,0.00013821,2]
[401138576,1767966639264,-9489.88285885,0.00013845,2]
[401138577,1767966639273,-500.0,0.00013946,2]
[401138578,1767966639282,-500.0,0.0001397,2]
[401138579,1767966639292,-500.0,0.0001397,2]
[401138580,1767966639301,-500.0,0.0001397,2]
[401138581,1767966639310,-500.0,0.0001397,2]
[401138582,1767966639320,-500.0,0.0001397,2]
[401138583,1767966639329,-487.00892918,0.0001397,2]
[401138584,1767966639338,-500.0,0.0001397,2]
[401138585,1767966639347,-500.0,0.0001397,2]
[401138586,1767966639357,-252.83611793,0.0001397,2]
[401138587,1767966639366,-500.0,0.0001397,2]
[401138588,1767966639375,-500.0,0.0001397,2]
[401138589,1767966639385,-500.0,0.0001397,2]
[401138590,1767966639394,-500.0,0.0001397,2]
[401138591,1767966639403,-500.0,0.0001397,2]
[401138592,1767966639412,-500.0,0.0001397,2]
[401138593,1767966639422,-500.0,0.0001397,2]
[401138594,1767966639431,-494.14647782,0.0001397,2]
[401138595,1767966639441,-500.0,0.0001397,2]
[401138596,1767966639453,-420.0,0.0001397,2]
[401138597,1767966639462,-500.0,0.0001397,2]
[401138598,1767966639471,-500.0,0.0001397,2]
[401138599,1767966639480,-520.0,0.0001397,2]
[401138600,1767966639488,-500.0,0.0001397,2]
[401138601,1767966639497,-470.0,0.0001397,2]
[401138602,1767966639507,-500.0,0.0001397,2]
[401138603,1767966639516,-500.0,0.0001397,2]
[401138604,1767966639525,-500.0,0.0001397,2]
[401138605,1767966639534,-500.0,0.0001397,2]
[401138606,1767966639544,-500.0,0.0001397,2]
[401138607,1767966639553,-300.0,0.00013972,2]
[401138608,1767966639564,-300.0,0.00013972,2]
[401138609,1767966639573,-300.0,0.00013972,2]
[401138610,1767966639583,-300.0,0.00013972,2]
[401138611,1767966639592,-300.0,0.00013972,2]
[401138612,1767966639601,-300.0,0.00013972,2]
[401138613,1767966639611,-300.0,0.00013972,2]
[401138614,1767966639620,-300.0,0.00013972,2]
[401138615,1767966639630,-300.0,0.00013972,2]
[401138616,1767966639639,-300.0,0.00013972,2]
[401138617,1767966639648,-300.0,0.00013972,2]
[401138618,1767966639658,-300.0,0.00013972,2]
[401138619,1767966639667,-300.0,0.00013972,2]
[401138620,1767966639676,-300.0,0.00013972,2]
[401138621,1767966639686,-300.0,0.00013972,2]
[401138622,1767966639696,-600.0,0.00013972,2]
[401138623,1767966639706,-500.0,0.00014083,2]
[401138624,1767966639715,-500.0,0.0001422,2]
[401138625,1767966639726,-1000.0,0.00014247,2]
[401138626,1767966639735,-242.93732994,0.00014247,2]
[401138627,1767966639745,-1000.0,0.00014247,2]
[401138628,1767966639755,-1000.0,0.00014247,2]
[401138629,1767966639764,-500.0,0.00014247,2]
[401138630,1767966639775,-1000.0,0.00014247,2]
[401138631,1767966639784,-500.0,0.00014247,2]
[401138632,1767966639793,-620.64308429,0.00014247,2]
[401138633,1767966639803,-921.61092346,0.00014247,2]
[401138634,1767966639813,-1000.0,0.00014247,2]
[401138635,1767966639822,-227.43805299,0.00014247,2]
[401138636,1767966639832,-1000.0,0.00014247,2]
[401138637,1767966639842,-1000.0,0.00014247,2]
[401138638,1767966639851,-1000.0,0.00014247,2]
[401138639,1767966639862,-500.0,0.00014247,2]
[401138640,1767966639871,-1000.0,0.00014247,2]
[401138641,1767966639881,-483.90483421,0.00014247,2]
[401138642,1767966639891,-500.0,0.00014247,2]
[401138643,1767966639902,-1000.0,0.00014247,2]
[401138644,1767966639912,-164.08625609,0.00014247,2]
[401138645,1767966639926,-835.91374391,0.00014247,2]
[401138647,1767966639937,-928.71091743,0.00014247,2]
[401138648,1767966639948,-71.28908257,0.00014247,2]
[401138649,1767966639958,-1000.0,0.00014247,2]
[401138650,1767966639967,-1628.12335758,0.00014349,2]
[401138651,1767966639976,-433.58561081,0.00014357,2]
[401138652,1767966639987,-66.41438919,0.00014357,2]
[401138653,1767966639997,-500.0,0.00014368,2]
[401138654,1767966640007,-500.0,0.00014368,2]
[401138655,1767966640018,-500.0,0.00014368,2]
[401138656,1767966640027,-223.47237517,0.00014368,2]
[401138657,1767966640039,-276.52762483,0.00014368,2]
[401138658,1767966640049,-1500.0,0.00014368,2]
[401138659,1767966640059,-1500.0,0.00014368,2]
[401138660,1767966640069,-237.53537708,0.00014494,2]
[401138661,1767966640083,-262.46462292,0.00014494,2]
[401138662,1767966640097,-420.0,0.00014551,2]
[401138663,1767966640108,-500.0,0.00014631,2]
[401138664,1767966640118,-500.0,0.00014768,2]
[401138665,1767966640129,-500.0,0.00014795,2]
[401138666,1767966640138,-1000.0,0.00014795,2]
[401138667,1767966640148,-504.73054898,0.00014795,2]
[401138668,1767966640159,-1500.0,0.00014795,2]
[401138669,1767966640171,-1500.0,0.00014795,2]
[401138670,1767966640180,-500.0,0.00014795,2]
[401138671,1767966640190,-245.07051734,0.00014795,2]
[401138672,1767966640199,-947.49421984,0.00014795,2]
[401138673,1767966640211,-956.95332704,0.00014795,2]
[401138674,1767966640221,-1500.0,0.00014795,2]
[401138675,1767966640230,-1500.0,0.00014795,2]
[401138676,1767966640239,-302.75754496,0.000149,2]
[401138677,1767966640249,-302.75754496,0.000149,2]
[401138678,1767966640258,-302.75754496,0.000149,2]
[401138679,1767966640267,-170.0,0.00014905,2]
[401138680,1767966640277,-2000.0,0.00014916,2]
[401138682,1767966640286,-2000.0,0.00014916,2]
[401138683,1767966640295,-215.992771,0.00015068,2]
[401138684,1767966640305,-800.0,0.00015068,2]
[401138685,1767966640314,-308.6000109,0.00015241,2]
[401138686,1767966640323,-262.82803029,0.00015272,2]
[401138687,1767966640333,-2000.0,0.00015342,2]
[401138688,1767966640342,-500.0,0.00015342,2]
[401138689,1767966640351,-2000.0,0.00015342,2]
[401138690,1767966640360,-2000.0,0.00015342,2]
[401138691,1767966640369,-720.0,0.00015369,2]
[401138692,1767966640378,-2500.0,0.00015464,2]
[401138693,1767966640387,-2500.0,0.00015464,2]
[401138694,1767966640396,-2146.0,0.00015806,2]
[401138695,1767966640404,-1366.0,0.00015806,2]
[401138696,1767966640413,-628.0,0.00015806,2]
[401138697,1767966640422,-417.0,0.00015806,2]
[401138698,1767966640431,-714.0,0.00015806,2]
[401138699,1767966640440,-153.0,0.00015808,2]
[401138700,1767966640449,-153.0,0.00015808,2]
[401138701,1767966640458,-153.0,0.00015808,2]
[401138702,1767966640467,-2500.0,0.0001589,2]
[401138703,1767966640476,-2500.0,0.0001589,2]
[401138704,1767966640485,-2500.0,0.0001589,2]
[401138705,1767966640494,-193.8907019,0.00015936,2]
[401138706,1767966640503,-155.7662542,0.00015936,2]
[401138707,1767966640512,-601.1321314,0.00015936,2]
[401138708,1767966640521,-601.1321314,0.00015936,2]
[401138709,1767966640530,-601.1321314,0.00015936,2]
[401138710,1767966640538,-601.1321314,0.00015936,2]
[401138711,1767966640548,-601.1321314,0.00015936,2]
[401138712,1767966640557,-601.1321314,0.00015936,2]
[401138713,1767966640566,-601.1321314,0.00015936,2]
[401138714,1767966640575,-587.0,0.00015953,2]
[401138715,1767966640584,-5000.0,0.00015989,2]
[401138716,1767966640593,-100000.0,0.0001599,2]
[401138717,1767966640603,-277.037109,0.0001599,2]
[401138718,1767966640613,-277.037109,0.0001599,2]
[401138719,1767966640622,-277.037109,0.0001599,2]
[401138720,1767966640631,-277.037109,0.0001599,2]
[401138721,1767966640640,-151.0,0.0001599,2]
[401138722,1767966640649,-848.820389,0.0001599,2]
[401138723,1767966640658,-848.820389,0.0001599,2]
[401138724,1767966640667,-848.820389,0.0001599,2]
[401138725,1767966640676,-848.820389,0.0001599,2]
[401138726,1767966640686,-151.0,0.0001599,2]
[401138727,1767966640697,-3000.0,0.00016012,2]
[401138728,1767966640706,-1232.45700431,0.00016012,2]
[401138729,1767966640715,-1000.0,0.000161,2]
[401138730,1767966640725,-377.0831682,0.00016219,2]
[401138731,1767966640734,-30873.62821935,0.00016237,2]
[401138732,1767966640743,-277.037109,0.00016237,2]
[401138734,1767966640753,-277.037109,0.00016237,2]
[401138736,1767966640762,-277.037109,0.00016237,2]
[401138738,1767966640771,-277.037109,0.00016237,2]
[401138740,1767966640779,-151.0,0.00016237,2]
[401138742,1767966640788,-151.0,0.000163,2]
[401138744,1767966640798,-1100.0,0.00016356,2]
[401138746,1767966640807,-848.820389,0.00016438,2]
[401138748,1767966640816,-848.820389,0.00016438,2]
[401138750,1767966640826,-848.820389,0.00016438,2]
[401138752,1767966640835,-848.820389,0.00016438,2]
[401138754,1767966640844,-155.566511,0.00016438,2]
[401138756,1767966640853,-151.0,0.00016438,2]
[401138758,1767966640862,-151.0,0.00016438,2]
[401138760,1767966640871,-164.14409414,0.00016438,2]
[401138762,1767966640880,-151.0,0.00016438,2]
[401138764,1767966640889,-151.0,0.00016438,2]
[401138766,1767966640897,-3000.0,0.00016438,2]
[401138768,1767966640906,-1918.97723055,0.00016438,2]
[401138770,1767966640915,-3000.0,0.00016438,2]
[401138772,1767966640925,-200.0,0.00016473,2]
[401138774,1767966640934,-260.31516356,0.0001656,2]
[401138776,1767966640945,-1000.0,0.000167,2]
[401138778,1767966640954,-151.0,0.000167,2]
[401138780,1767966640962,-200.0,0.00016766,2]
[401138782,1767966640971,-161.319,0.00016766,2]
[401138784,1767966640980,-151.0,0.00016767,2]
[401138786,1767966640989,-3645.37187998,0.00016776,2]
[401138788,1767966640998,-384.356,0.00016804,2]
[401138790,1767966641007,-282.47697856,0.00016823,2]
[401138792,1767966641016,-1128.77800632,0.00016823,2]
[401138794,1767966641025,-380.0,0.00016869,2]
[401138796,1767966641035,-300.96266415,0.00016875,2]
[401138798,1767966641045,-500.0,0.00016875,2]
[401138800,1767966641054,-500.0,0.00016875,2]
[401138802,1767966641062,-500.0,0.00016875,2]
[401138804,1767966641071,-500.0,0.00016875,2]
[401138806,1767966641080,-500.0,0.00016875,2]
[401138808,1767966641091,-500.0,0.00016875,2]
[401138810,1767966641102,-500.0,0.00016875,2]
[401138812,1767966641111,-500.0,0.00016875,2]
[401138814,1767966641121,-500.0,0.00016875,2]
[401138816,1767966641130,-500.0,0.00016875,2]
[401138818,1767966641141,-500.0,0.00016875,2]
[401138820,1767966641150,-500.0,0.00016875,2]
[401138822,1767966641160,-500.0,0.00016875,2]
[401138824,1767966641171,-500.0,0.00016875,2]
[401138826,1767966641180,-500.0,0.00016875,2]
[401138828,1767966641189,-511.91782266,0.00016875,2]
[401138830,1767966641198,-511.91782266,0.00016875,2]
[401138832,1767966641207,-511.91782266,0.00016875,2]
[401138834,1767966641216,-511.91782266,0.00016875,2]
[401138836,1767966641225,-511.91782266,0.00016875,2]
[401138838,1767966641234,-511.91782266,0.00016875,2]
[401138840,1767966641243,-511.91782266,0.00016875,2]
[401138842,1767966641252,-511.91782266,0.00016875,2]
[401138844,1767966641261,-511.91782266,0.00016875,2]
[401138846,1767966641271,-505.3124314,0.00016875,2]
[401138848,1767966641279,-505.3124314,0.00016875,2]
[401138850,1767966641288,-505.3124314,0.00016875,2]
[401138852,1767966641297,-277.037109,0.00016876,2]
[401138854,1767966641307,-277.037109,0.00016876,2]
[401138856,1767966641315,-277.037109,0.00016876,2]
[401138858,1767966641324,-277.037109,0.00016876,2]
[401138860,1767966641335,-277.037109,0.00016876,2]
[401138862,1767966641345,-277.037109,0.00016876,2]
[401138864,1767966641353,-277.037109,0.00016876,2]
[401138866,1767966641363,-277.037109,0.00016876,2]
[401138868,1767966641371,-151.0,0.00016876,2]
[401138869,1767966641380,-848.820389,0.00016876,2]
[401138871,1767966641390,-848.820389,0.00016876,2]
[401138873,1767966641400,-848.820389,0.00016876,2]
[401138875,1767966641409,-848.820389,0.00016876,2]
[401138877,1767966641418,-848.820389,0.00016876,2]
[401138879,1767966641427,-848.820389,0.00016876,2]
[401138881,1767966641436,-848.820389,0.00016876,2]
[401138883,1767966641444,-848.820389,0.00016876,2]
[401138885,1767966641453,-151.0,0.00016876,2]
[401138887,1767966641462,-1500.0,0.00016876,2]
[401138889,1767966641472,-322.6107,0.00016876,2]
[401138891,1767966641481,-151.0,0.00016876,2]
[401138893,1767966641490,-151.0,0.00016876,2]
[401138895,1767966641499,-1500.0,0.00016876,2]
[401138897,1767966641508,-478.75725327,0.00016876,2]
[401138899,1767966641519,-250.0,0.00016876,2]
[401138901,1767966641528,-151.0,0.00016876,2]
[401138903,1767966641537,-151.0,0.00016876,2]
[401138905,1767966641546,-1500.0,0.00016876,2]
[401138907,1767966641556,-250.0,0.00016876,2]
[401138909,1767966641565,-151.0,0.00016876,2]
[401138911,1767966641574,-151.0,0.00016876,2]
[401138913,1767966641583,-1500.0,0.00016876,2]
[401138915,1767966641591,-250.0,0.00016876,2]
[401138917,1767966641601,-151.0,0.00016876,2]
[401138919,1767966641610,-1500.0,0.00016876,2]
[401138921,1767966641618,-151.0,0.00016876,2]
[401138923,1767966641627,-265.04542702,0.00016876,2]
[401138925,1767966641637,-1500.0,0.00016876,2]
[401138927,1767966641646,-250.0,0.00016876,2]
[401138929,1767966641655,-151.0,0.00016876,2]
[401138931,1767966641664,-1500.0,0.00016876,2]
[401138933,1767966641673,-250.0,0.00016876,2]
[401138935,1767966641682,-151.0,0.00016876,2]
[401138937,1767966641692,-250.0,0.00016876,2]
[401138939,1767966641702,-1500.0,0.00016876,2]
[401138941,1767966641711,-250.0,0.00016876,2]
[401138943,1767966641720,-151.0,0.00016876,2]
[401138945,1767966641729,-250.0,0.00016876,2]
[401138947,1767966641738,-1500.0,0.00016876,2]
[401138949,1767966641747,-234.49400681,0.00016876,2]
[401138951,1767966641756,-2312.83697232,0.00016876,2]
[401138953,1767966641765,-151.0,0.00016876,2]
[401138955,1767966641775,-250.0,0.00016876,2]
[401138957,1767966641784,-1500.0,0.00016876,2]
[401138959,1767966641794,-250.0,0.00016876,2]
[401138961,1767966641803,-151.0,0.00016876,2]
[401138963,1767966641812,-250.0,0.00016876,2]
[401138965,1767966641821,-1500.0,0.00016876,2]
[401138967,1767966641830,-250.0,0.00016876,2]
[401138969,1767966641839,-151.0,0.00016876,2]
[401138971,1767966641849,-250.0,0.00016876,2]
[401138973,1767966641858,-1500.0,0.00016876,2]
[401138975,1767966641867,-250.0,0.00016876,2]
[401138977,1767966641876,-152.53645226,0.00016876,2]
[401138979,1767966641884,-250.0,0.00016876,2]
[401138981,1767966641894,-1500.0,0.00016876,2]
[401138983,1767966641903,-250.0,0.00016876,2]
[401138985,1767966641912,-250.0,0.00016876,2]
[401138988,1767966641931,-151.0,0.00016876,2]
[401138990,1767966641942,-1500.0,0.00016876,2]
[401138992,1767966641951,-250.0,0.00016876,2]
[401138994,1767966641960,-151.0,0.00016876,2]
[401138996,1767966641969,-151.0,0.00016876,2]
[401138999,1767966641978,-1500.0,0.00016876,2]
[401139001,1767966641988,-250.0,0.00016876,2]
[401139003,1767966641997,-151.0,0.00016876,2]
[401139005,1767966642006,-241.40612291,0.00016876,2]
[401139007,1767966642016,-250.0,0.00016876,2]
[401139009,1767966642025,-151.0,0.00016876,2]
[401139011,1767966642034,-500.0,0.00016876,2]
[401139013,1767966642043,-250.0,0.00016876,2]
[401139015,1767966642052,-151.0,0.00016876,2]
[401139017,1767966642061,-201.61280064,0.00016876,2]
[401139019,1767966642070,-500.0,0.00016876,2]
[401139020,1767966642079,-151.0,0.00016876,2]
[401139023,1767966642089,-500.0,0.00016876,2]
[401139024,1767966642102,-151.0,0.00016876,2]
[401139026,1767966642111,-500.0,0.00016876,2]
[401139028,1767966642121,-151.0,0.00016876,2]
[401139030,1767966642130,-500.0,0.00016876,2]
[401139033,1767966642141,-151.0,0.00016876,2]
[401139035,1767966642151,-151.0,0.00016876,2]
[401139036,1767966642161,-500.0,0.00016876,2]
[401139038,1767966642171,-151.0,0.00016876,2]
[401139041,1767966642180,-500.0,0.00016876,2]
[401139043,1767966642190,-250.0,0.00016876,2]
[401139045,1767966642199,-151.0,0.00016876,2]
[401139046,1767966642208,-500.0,0.00016876,2]
[401139048,1767966642217,-500.0,0.00016876,2]
[401139050,1767966642226,-250.0,0.00016876,2]
[401139053,1767966642235,-151.0,0.00016876,2]
[401139055,1767966642244,-250.0,0.00016876,2]
[401139056,1767966642253,-151.0,0.00016876,2]
[401139058,1767966642262,-500.0,0.00016876,2]
[401139060,1767966642271,-151.0,0.00016876,2]
[401139063,1767966642280,-250.0,0.00016876,2]
[401139065,1767966642290,-500.0,0.00016876,2]
[401139067,1767966642299,-151.0,0.00016876,2]
[401139086,1767966642467,-250.0,0.00016876,2]
[401139088,1767966642476,-500.0,0.00016876,2]
[401139090,1767966642486,-151.0,0.00016876,2]
[401139092,1767966642495,-250.0,0.00016876,2]